Cogmind - Beta 10.2 @@@ ROGUE MODE // 2021.07.13 @ 04:18:39 Player: KTG-V3 Result: Destroyed by G-47 Trooper with Particle Gun Performance ------------- Evolutions (2) 1000 Regions Visited (3) 600 Robots Destroyed (0) 0 Value Destroyed (0) 0 Prototype IDs (0) 0 Alien Tech Used (0) 0 Bonus (470) 470 TOTAL SCORE: 2070 Bonus ------- Pacifist 470 Cogmind --------- Core Integrity 0/550 Matter 201/300 Energy 98/100 System Corruption 0% Temperature Cool (18) Movement Core (50) Location -8/Materials Parts ------- > --- POWER (1) -------- (None) > --- PROPULSION (6) --- Armored Treads Titanium Leg > --- UTILITY (2) ------ (None) > --- WEAPON (2) ------- (None) > --- INVENTORY (4) ---- (None) Peak State ------------ > --- POWER ------------ (None) > --- PROPULSION ------- Improved Hover Unit Improved Hover Unit Improved Hover Unit Improved Hover Unit Improved Hover Unit > --- UTILITY ---------- (None) > --- WEAPON ----------- (None) > --- INVENTORY -------- (None) [Rating: 10] Favorites ----------- Power None Propulsion Improved Hover Unit Treads Armored Treads Leg Titanium Leg Hover Unit Improved Hover Unit Utility Small Storage Unit Storage Small Storage Unit Weapon None Build | -11 -10 -9 -8 ------- Run | Scr Mat Mat Mat Slots Evolved 4 | . . 2 2 Power . | . . . . Propulsion 4 | . . 2 2 Utility . | . . . . Weapon . | . . . . Parts Attached 8 | 1 . . 7 Power . | . . . . Engine . | . . . . Core . | . . . . Reactor . | . . . . Propulsion 7 | . . . 7 Treads 1 | . . . 1 Leg 1 | . . . 1 Wheel . | . . . . Hover 5 | . . . 5 Flight . | . . . . Utility 1 | 1 . . . Device . | . . . . Storage 1 | 1 . . . Processor . | . . . . Hackware . | . . . . Protection . | . . . . Artifact . | . . . . Weapon . | . . . . Energy Gun . | . . . . Energy Cannon . | . . . . Ballistic Gun . | . . . . Ballistic Cannon . | . . . . Launcher . | . . . . Special Weapon . | . . . . Impact Weapon . | . . . . Slashing Weapon . | . . . . Piercing Weapon . | . . . . Special Melee Weapon . | . . . . Unidentified Prototypes . | . . . . Parts Lost 5 | . . . 5 Power . | . . . . Propulsion 5 | . . . 5 Utility . | . . . . Weapon . | . . . . Highest Loss Streak 5 | . . . 5 Average Slot Usage (%) 7 | . . . 13 Treads 3 | . . . 5 Leg 1 | . . . 2 Hover 3 | . . . 6 Naked Turns 133 | . 36 72 25 Heaviest Build . | . . . . Greatest Support 40 | 3 3 3 40 Greatest Overweight (x) . | . . . . Average Overweight (x) . | . . . . Largest Inventory Capacity 6 | 6 4 4 4 Average Capacity 4 | 4 4 4 4 Most Carried . | . . . . Average Carried . | . . . . Final Capacity 4 | 4 4 4 4 Final Carried . | . . . . Class Distribution -------------------- 100% | Mutant Dominant Class ---------------- Mutant | -10/Materials Mutant | -9/Materials Mutant | -8/Materials Resources | -11 -10 -9 -8 ----------- Run | Scr Mat Mat Mat Matter Collected 150 | 123 . . 27 Remotely . | . . . . Salvage Created . | . . . . Parts . | . . . . Haulers Intercepted . | . . . . Recyclers Shooed . | . . . . Parts Field Recycled . | . . . . Retrieved Matter . | . . . . Parts Self-Destructed . | . . . . Prevented . | . . . . Kills | -11 -10 -9 -8 ------- Run | Scr Mat Mat Mat Combat Hostiles Destroyed . | . . . . Classes Destroyed . | . . . . Best Kill Streak . | . . . . Combat Bots Only . | . . . . Max Kills in Single Turn . | . . . . Gunslinging . | . . . . Exploded . | . . . . Melee . | . . . . Uniques/NPCs Destroyed . | . . . . Combat | -11 -10 -9 -8 -------- Run | Scr Mat Mat Mat Damage Taken 1165 | . 44 105 1016 Core 708 | . 44 105 559 Absorbed by Shields . | . . . . Core Remaining (%) 85 | 100 82 73 . Volleys Fired . | . . . . Largest . | . . . . Hottest . | . . . . Shots Fired . | . . . . Gun . | . . . . Cannon . | . . . . Launcher . | . . . . Special . | . . . . Kinetic . | . . . . Thermal . | . . . . Explosive . | . . . . Electromagnetic . | . . . . Robot Hit Streak . | . . . . Robot Miss Streak . | . . . . Penetration Max . | . . . . Secondary Targets . | . . . . Shots Hit Robots . | . . . . Core Hits 1 | . . . 1 Critical Hits . | . . . . Critical Kills . | . . . . Critical Parts Destroyed . | . . . . Melee Attacks . | . . . . Impact . | . . . . Slashing . | . . . . Piercing . | . . . . Sneak Attacks . | . . . . Combat Hostiles . | . . . . Follow-up Attacks . | . . . . Damage Inflicted 5 | . . . 5 Guns . | . . . . Cannons . | . . . . Explosions . | . . . . Melee . | . . . . Ramming 5 | . . . 5 Kinetic . | . . . . Thermal . | . . . . Explosive . | . . . . Electromagnetic . | . . . . Impact . | . . . . Slashing . | . . . . Piercing . | . . . . Highest Corruption . | . . . . Average Corruption . | . . . . Corruption Purged . | . . . . Overload Shots . | . . . . Overflow Damage . | . . . . Projectiles . | . . . . Explosions . | . . . . Melee . | . . . . Knockbacks . | . . . . Impact . | . . . . Kinetic . | . . . . Secondary . | . . . . Self-Inflicted Damage 2 | . . . 2 Shots . | . . . . Rammed 2 | . . . 2 Targets Rammed 2 | . . . 2 Kicked . | . . . . Crushed . | . . . . Highest Temperature . | . . . . Average Temperature . | . . . . Received Heat Transfer 261 | . . 18 243 Siege Activations . | . . . . Robots Corrupted . | . . . . Combat Hostiles . | . . . . Parts Fried . | . . . . Impact Corruptions . | . . . . Robots Melted . | . . . . Combat Hostiles . | . . . . Parts Melted . | . . . . Heat Transferred . | . . . . Parts Sabotaged . | . . . . Parts Stolen . | . . . . Parts Stripped . | . . . . Power Chain Reactions . | . . . . Missiles Intercepted . | . . . . Alert | -11 -10 -9 -8 ------- Run | Scr Mat Mat Mat Peak Influence 149 | . 15 149 138 Initial 68 | . . 5 68 Average 57 | . 4 60 75 Maximum Alert Level . | . . . . Low Security (%) 100 | 100 100 100 100 Level 1 . | . . . . Level 2 . | . . . . Level 3 . | . . . . Level 4 . | . . . . Level 5 . | . . . . High Security . | . . . . Max Security . | . . . . Squads Dispatched 3 | . 1 1 1 Investigation . | . . . . Extermination . | . . . . Reinforcement 3 | . 1 1 1 Assault . | . . . . Garrison . | . . . . Intercept . | . . . . Construction Impeded . | . . . . Haulers Reinforced . | . . . . Stealth | -11 -10 -9 -8 --------- Run | Scr Mat Mat Mat Distress Signals . | . . . . Communications Jammed . | . . . . Distress Signals . | . . . . Times Spotted 35 | . 5 9 21 Peak Tracking Total 12 | . 4 12 12 Tactical Retreats 3 | . . 1 2 Traps | -11 -10 -9 -8 ------- Run | Scr Mat Mat Mat Traps Triggered . | . . . . Indirectly . | . . . . Trap Hack Attempts . | . . . . Triggered . | . . . . Disarmed . | . . . . Reprogrammed . | . . . . Reused . | . . . . Traps Extracted . | . . . . Installed . | . . . . Triggered . | . . . . Machines | -11 -10 -9 -8 ---------- Run | Scr Mat Mat Mat Machines Disabled . | . . . . Max in Single Turn . | . . . . Machines Sabotaged . | . . . . Garrisons Compromised . | . . . . Overloaded Fab Kills . | . . . . Fab Network Shutdowns . | . . . . Hacking | -11 -10 -9 -8 --------- Run | Scr Mat Mat Mat Machines Accessed 2 | . 1 1 . Terminals 2 | . 1 1 . Fabricators . | . . . . Repair Stations . | . . . . Recycling Units . | . . . . Scanalyzers . | . . . . Garrison Access . | . . . . Total Hacks 4 | . 2 2 . Successful 1 | . . 1 . Failed 3 | . 2 1 . Catastrophic 1 | . 1 . . Database Lockouts . | . . . . Manual 4 | . 2 2 . Terminals 4 | . 2 2 . Fabricators . | . . . . Repair Stations . | . . . . Recycling Units . | . . . . Scanalyzers . | . . . . Garrison Access . | . . . . Terminal Hacks 1 | . . 1 . Level Access Points 1 | . . 1 . Fabricator Hacks . | . . . . Repair Station Hacks . | . . . . Recycling Unit Hacks . | . . . . Scanalyzer . | . . . . Garrison Access Hacks . | . . . . Unauthorized Hacks . | . . . . Terminals . | . . . . Fabricators . | . . . . Repair Stations . | . . . . Recycling Units . | . . . . Scanalyzers . | . . . . Garrison Access . | . . . . Data Cores Recovered . | . . . . Used . | . . . . Hacking Detections 2 | . 1 1 . Full Trace Events 1 | . 1 . . Feedback Events . | . . . . Feedback Blocked . | . . . . Robot Schematics Acquired . | . . . . Robots Built . | . . . . Matter . | . . . . Time . | . . . . Total Robot Build Rating . | . . . . Part Schematics Acquired . | . . . . Parts Built . | . . . . Matter . | . . . . Time . | . . . . Total Part Build Rating . | . . . . Parts Repaired . | . . . . Time . | . . . . Parts Recycled . | . . . . Recycled Matter . | . . . . Retrieved Matter . | . . . . Retrieved Components . | . . . . Parts Scanalyzed . | . . . . Part Schematics Acquired . | . . . . Parts Damaged . | . . . . Bothacking | -11 -10 -9 -8 ------------ Run | Scr Mat Mat Mat Used RIF Installer . | . . . . Robots Hacked . | . . . . Non-combat . | . . . . Combat . | . . . . Robot Hacks Applied . | . . . . Relay Couplers Released . | . . . . Robots Rewired . | . . . . Allies Hacked . | . . . . Hacks Repelled . | . . . . Allies | -11 -10 -9 -8 -------- Run | Scr Mat Mat Mat Total Allies . | . . . . Largest Group . | . . . . Highest-Rated Group . | . . . . Highest-Rated Ally . | . . . . Total Orders . | . . . . Ally Attacks . | . . . . Total Damage . | . . . . Kills . | . . . . Allies Corrupted . | . . . . Allies Melted . | . . . . Intel | -11 -10 -9 -8 ------- Run | Scr Mat Mat Mat Robot Analysis Total . | . . . . Derelict Logs Recovered . | . . . . Drone Launches . | . . . . Drone Recoveries . | . . . . Exploration | -11 -10 -9 -8 ------------- Run | Scr Mat Mat Mat Turns Passed 249 | 11 36 72 130 Spaces Moved 466 | 18 71 144 233 Core 460 | 18 71 144 227 Treads . | . . . . Legs . | . . . . Wheels . | . . . . Hover 6 | . . . 6 Flight . | . . . . Fastest Speed 44 | 50 50 50 44 Average Speed 50 | 50 50 50 50 Slowest Speed 60 | 50 50 50 60 Overloaded Moves . | . . . . Propulsion Burnouts . | . . . . Robots Hopped . | . . . . Cave-ins Triggered . | . . . . Exploration Rate (%) 20 | 3 22 29 28 Regions Visited 3 Branch Regions . Pre-discovered Areas . | . . . . Known Exits Taken 1 | . . 1 . Unknown Exits Taken 2 | 1 1 . . Scrap Searched . | . . . . Spaces Dug . | . . . . Terrain Destroyed . | . . . . Melee . | . . . . Projectile . | . . . . AOE . | . . . . Terrain Rammed . | . . . . Walls Destroyed . | . . . . Machines Disabled . | . . . . Actions | -11 -10 -9 -8 --------- Run | Scr Mat Mat Mat Total 475 | 19 70 143 243 Wait 1 | . . . 1 Move 463 | 17 70 143 233 Hop . | . . . . Pick Up . | . . . . Fast Attach 8 | 1 . . 7 Attach . | . . . . Detach . | . . . . Swap . | . . . . Drop 1 | 1 . . . Fire . | . . . . Melee . | . . . . Ram 2 | . . . 2 Kick . | . . . . Crush . | . . . . Escape Stasis . | . . . . Rewire . | . . . . Trap . | . . . . Miscellaneous . | . . . . Route ------- -11/Scrapyard -10/Materials (discovered 2 exits: *Mat / [*Min]) -9/Materials (discovered 3 exits: *Mat x3) -8/Materials History --------- Turn | Location | Event 7 | -11/Scrapyard | Discovered new exit (range 12) 12 | -11/Scrapyard | Entered Materials 20 | -10/Materials | Discovered new exit (range 16) 42 | -10/Materials | Discovered new exit (range 11) 48 | -10/Materials | Entered another Materials area 48 | -9/Materials | Evolved 2 slots: Propulsion x2 109 | -9/Materials | Identified exit to Materials 120 | -9/Materials | Entered another Materials area 120 | -8/Materials | Evolved 2 slots: Propulsion x2 165 | -8/Materials | Core integrity fell below 50% 189 | -8/Materials | Lost 5 parts (5n) 205 | -8/Materials | Core integrity fell below 20% 250 | -8/Materials | Destroyed by G-47 Trooper with Particle Gun Last Messages --------------- 00112_ K-01 Serf collects debris. PARAMETERS=PROPULSION_2 LOCATION=MATERIALS GOAL=ESCAPE 00133_ Acquired Imp. Hover Unit. 00151_ Imp. Hover Unit destroyed. 00156_ ALERT: Hostiles spotted, dispatching reinforcements to Terminal M002. 00157_ Imp. Hover Unit destroyed. 00166_ K-01 Serf collects debris. 00170_ Acquired Arm. Treads. 00171_ S-10 Pest destroyed. 00184_ Acquired 17 matter. 00206_ U-05 Engineer destroyed. 00208_ Acquired 10 matter. 00226_ Acquired Titanium Leg. 00243_ S-10 Pest destroyed. 00244_ Slammed into U-05 Engineer. 00248_ Slammed into A-02 Transporter. 00249_ K-01 Serf cleans the Electrolysis Chamber. Map ----- +----------------------------------------------------+ | ?# """ !# #??# #??????##########?????????????? | | ?# # #??# #?????????????????????????????? | | #####+### #??# #?????????????????????????????? | | #??# #?????????????????????????????? | | #??# #?????????????????????????????? | | #??# #?????????????????????????????? | | #############??# #?????????????????????????????? | | ???????????????# #?????????????????????????????? | | ???????????????# #?????????????????????????????? | | ################ #?????????????????????????????? | | #?????????????????????????????? | | | #?????????????????????????????? | | * ! #?????????????????????????????? | | ################ #?????????????????????????????? | | ??????? = # #?????????????????????????????? | | ??????! """ # #?????????????????????????????? | | ??????! """ + #?#########???????????????????? | | ?????? """ # #?# ???????????????????? | | ??????? # #?# "" ?#?????????????????? | | ???????#######?# #?# "G #?????????????????? | | ????????????#####+#### "" """ #?????????????????? | | ????????????# * # """ #?????????????????? | | ????????????# %= """ # """ #?????????????????? | | ????????????# = """ # ???????????????????? | | ????????????#! """ #? ?????????????????????? | | ????????????# ####@###????????????????????? | | ????????????# """ ## #######??????????????? | | ????????????# * """ ##! o ??????????? | | ????????????# """ s gY ?????????? | | ????????????# ## ??????????? | | ????????????########### ##########+??????????? | | ??????????????????????## ##????????????????????? | | ???????????????????????# #?????????????????????? | | ???????????????????????# #?????????????????????? | | ???????????????????????+ +?????????????????????? | | ???????????????????????# #?????????????????????? | | ???????????????????????# #?????????????????????? | | ???????????????????????# #?????????????????????? | | ????????????????????????#+##?????????????????????? | | ?????????????????????????????????????????????????? | | ?????????????????????????????????????????????????? | | ?????????????????????????????????????????????????? | | ?????????????????????????????????????????????????? | | ?????????????????????????????????????????????????? | | ?????????????????????????????????????????????????? | | ?????????????????????????????????????????????????? | | ?????????????????????????????????????????????????? | | ?????????????????????????????????????????????????? | | ?????????????????????????????????????????????????? | | ?????????????????????????????????????????????????? | +----------------------------------------------------+ Best States ------------- Heat Dissipation 31 Energy Generation 5 Energy Capacity 100 Matter Stores 213 Matter Capacity 300 Sight Range 16 Terrain Scan Density 10 Evasion (%) 50 Item Schematics ----------------- None Robot Schematics ------------------ None Fabricated ------------ Nothing Alien Tech Used ----------------- None Achievements -------------- None Challenges ------------ None Game ------ Seed HardenedStormShield Manual? 0 Play Time 00:07:50 Cumulative 209.7 hours Start 2021.07.13 @ 04:12:34 End 2021.07.13 @ 04:18:39 Sessions 1 Manual Loads 0 Difficulty Rogue Special Mode None Game No. 48 Rogue 47 Adventurer 0 Explorer 1 Win Type - Total 14 Types 4/2/1/1/0/0/4/1/1 Lore% 73 Gallery% 80 Achievement% 67 Wizard Run 0 Options --------- ASCII 0 Keyboard 0 Movement Mouse Keybinds 0 Fullscreen 1 Font 18/Terminus Map View 76x50 Tactical HUD 1 Map Filters NONE Filters NONE Steam 0 RUN: 17c67579-6ba8-4e7c-9f06-7bbf22bf5575